fUST/lending_fUST_20240811
["ID","MTS","AMOUNT","RATE_DAILY","PERIOD"]
[334635385,1723369570595,706.94,0.0002333,30]
[334635387,1723369638149,-810.44375008,0.00016159,2]
[334635388,1723369638169,-989.90003636,0.00016159,2]
[334635389,1723369638190,-37.90767094,0.00016159,2]
[334635429,1723369764114,-204.76596167,0.00016095,2]
[334635463,1723369838235,-300.0,0.00015896,2]
[334635464,1723369838245,-300.0,0.00015896,2]
[334635465,1723369838254,-3399.60941872,0.00015897,2]
[334635466,1723369838273,-21500.39058128,0.00015897,2]
[334635467,1723369838283,-309.47692575,0.00015954,2]
[334635468,1723369838292,-154.79103211,0.00016038,2]
[334635469,1723369838301,-413.29975831,0.00016038,2]
[334635470,1723369838311,-154.78689557,0.00016095,2]
[334635471,1723369838321,-332.21200423,0.00016095,2]
[334635472,1723369838330,-183.00211227,0.00016309,2]
[334635473,1723369838339,-192.35441404,0.00016309,2]
[334635474,1723369838348,-20777.37607493,0.00016347,2]
[334635475,1723369838357,-5096.09566092,0.00016551,2]
[334635476,1723369838367,-5096.09566092,0.00016772,2]
[334635477,1723369838376,-154.90684221,0.00017,2]
[334635478,1723369838386,-500.0,0.00017018,2]
[334635479,1723369838395,-500.0,0.00017018,2]
[334635480,1723369838406,-500.0,0.00017018,2]
[334635481,1723369838415,-500.0,0.00017018,2]
[334635482,1723369838425,-307.45404094,0.00017018,2]
[334635483,1723369838434,-500.0,0.00017018,2]
[334635484,1723369838444,-35040.45161499,0.00017019,2]
[334635485,1723369838454,-5096.09566092,0.00017188,2]
[334635486,1723369838463,-2154.62587815,0.00017281,2]
[334635487,1723369838481,-71577.1116132,0.00017379,2]
[334635488,1723369838661,-420.0,0.00017381,2]
[334635489,1723369838671,-42377.77535747,0.00017389,2]
[334635490,1723369838681,-42377.77535747,0.00017389,2]
[334635491,1723369838692,-500.0,0.00017391,2]
[334635492,1723369838701,-205.80835972,0.00017391,2]
[334635493,1723369838711,-343.63070483,0.00017391,2]
[334635494,1723369838722,-500.0,0.00017391,2]
[334635495,1723369838731,-500.0,0.00017391,2]
[334635496,1723369838740,-500.0,0.00017391,2]
[334635497,1723369838749,-500.0,0.00017391,2]
[334635498,1723369838759,-500.0,0.00017391,2]
[334635499,1723369838769,-500.0,0.00017391,2]
[334635500,1723369838778,-632.7051566,0.00017391,2]
[334635501,1723369838787,-500.0,0.00017391,2]
[334635502,1723369838796,-500.0,0.00017391,2]
[334635503,1723369838806,-500.0,0.00017391,2]
[334635504,1723369838815,-71577.1116132,0.00017392,2]
[334635505,1723369838824,-420.0,0.00017486,2]
[334635506,1723369838833,-5096.09566092,0.00017517,2]
[334635507,1723369838843,-2154.62587812,0.00017522,2]
[334635508,1723369838852,-5096.09566092,0.00017613,2]
[334635509,1723369838861,-500.0,0.00017673,2]
[334635510,1723369838870,-2154.62587812,0.00017764,2]
[334635511,1723369838880,-5203.5035593,0.00017805,2]
[334635512,1723369838889,-150.112233,0.000179,2]
[334635513,1723369838899,-5096.09566092,0.00017952,2]
[334635514,1723369838908,-244.96596268,0.00018,2]
[334635515,1723369838917,-150.112233,0.00018,2]
[334635516,1723369838926,-2154.62587812,0.00018005,2]
[334635517,1723369838935,-1612.06535955,0.00018125,2]
[334635518,1723369838945,-1765.03360075,0.00018125,2]
[334635519,1723369838954,-46339.17053652,0.0001814,2]
[334635520,1723369838963,-150.112233,0.000182,2]
[334635521,1723369838974,-2000.0,0.00018236,2]
[334635522,1723369838983,-2154.62587812,0.00018246,2]
[334635523,1723369838993,-5096.09566092,0.00018262,2]
[334635524,1723369839006,-150.112233,0.000183,2]
[334635525,1723369839016,-5240.178669,0.00018302,2]
[334635526,1723369839025,-9651.03918107,0.00018316,2]
[334635527,1723369839035,-8836.92013464,0.00018316,2]
[334635528,1723369839046,-71577.1116132,0.00018335,2]
[334635529,1723369839055,-71577.1116132,0.00018346,2]
[334635530,1723369839064,-2141.01768748,0.00018346,2]
[334635531,1723369839074,-846.23163308,0.00018402,2]
[334635532,1723369839084,-5096.09566092,0.00018417,2]
[334635533,1723369839093,-1496.79105984,0.00018486,2]
[334635534,1723369839102,-2126.37973248,0.00018489,2]
[334635535,1723369839112,-150.112233,0.000185,2]
[334635536,1723369839121,-194.74416001,0.00018557,2]
[334635537,1723369839130,-277.43269753,0.00018557,2]
[334635538,1723369839139,-952.621668,0.00018557,2]
[334635539,1723369839148,-71577.1116132,0.00018576,2]
[334635540,1723369839158,-88888.0,0.00018586,2]
[334635541,1723369839168,-816.94684465,0.00018587,3]
[334635542,1723369839178,-850.13586547,0.00018587,2]
[334635543,1723369839187,-150.112233,0.000186,2]
[334635544,1723369839196,-500.0,0.00018603,2]
[334635545,1723369839205,-500.0,0.00018603,2]
[334635546,1723369839215,-203.5066412,0.00018629,2]
[334635547,1723369839224,-163.09265262,0.00018629,2]
[334635548,1723369839233,-180.63105164,0.00018629,2]
[334635549,1723369839242,-156.87111249,0.00018629,2]
[334635550,1723369839251,-601.3570708,0.00018696,2]
[334635551,1723369839260,-404.08727484,0.00018701,2]
[334635552,1723369839270,-150.112233,0.000188,2]
[334635553,1723369839279,-150.112233,0.000188,2]
[334635554,1723369839288,-5096.09566092,0.00018836,2]
[334635555,1723369839297,-462.202602,0.00018904,2]
[334635556,1723369839307,-522.80309354,0.00018979,2]
[334635557,1723369839316,-154.76012181,0.00018989,2]
[334635558,1723369839325,-226.0,0.0001899,2]
[334635559,1723369839334,-226.0,0.0001899,2]
[334635560,1723369839343,-226.0,0.0001899,2]
[334635561,1723369839353,-226.0,0.0001899,2]
[334635562,1723369839362,-226.0,0.0001899,2]
[334635563,1723369839371,-226.0,0.0001899,2]
[334635564,1723369839380,-226.0,0.0001899,2]
[334635565,1723369839389,-226.0,0.0001899,2]
[334635566,1723369839398,-226.0,0.0001899,2]
[334635567,1723369839407,-226.0,0.0001899,2]
[334635568,1723369839417,-226.0,0.0001899,2]
[334635569,1723369839426,-424.0,0.0001899,2]
[334635570,1723369839435,-424.0,0.0001899,2]
[334635571,1723369839445,-424.0,0.0001899,2]
[334635572,1723369839454,-424.0,0.0001899,2]
[334635573,1723369839464,-424.0,0.0001899,2]
[334635574,1723369839473,-424.0,0.0001899,2]
[334635575,1723369839482,-424.0,0.0001899,2]
[334635576,1723369839492,-424.0,0.0001899,2]
[334635577,1723369839501,-424.0,0.0001899,2]
[334635578,1723369839510,-424.0,0.0001899,2]
[334635579,1723369839519,-424.0,0.0001899,2]
[334635580,1723369839528,-424.0,0.0001899,2]
[334635581,1723369839538,-424.0,0.0001899,2]
[334635582,1723369839547,-424.0,0.0001899,2]
[334635584,1723369839556,-424.0,0.0001899,2]
[334635585,1723369839566,-424.0,0.0001899,2]
[334635586,1723369839576,-424.0,0.0001899,2]
[334635587,1723369839585,-424.0,0.0001899,2]
[334635588,1723369839594,-424.0,0.0001899,2]
[334635589,1723369839603,-424.0,0.0001899,2]
[334635590,1723369839613,-424.0,0.0001899,2]
[334635591,1723369839622,-424.0,0.0001899,2]
[334635592,1723369839631,-424.0,0.0001899,2]
[334635593,1723369839640,-424.0,0.0001899,2]
[334635594,1723369839650,-424.0,0.0001899,2]
[334635595,1723369839659,-424.0,0.0001899,2]
[334635596,1723369839668,-424.0,0.0001899,2]
[334635597,1723369839677,-424.0,0.0001899,2]
[334635599,1723369839686,-424.0,0.0001899,2]
[334635600,1723369839696,-424.0,0.0001899,2]
[334635601,1723369839705,-433.0,0.0001899,2]
[334635603,1723369839715,-433.0,0.0001899,2]
[334635604,1723369839725,-153.0,0.00018992,2]
[334635605,1723369839735,-153.0,0.00018992,2]
[334635606,1723369839745,-153.0,0.00018992,2]
[334635608,1723369839754,-153.0,0.00018992,2]
[334635610,1723369839763,-153.0,0.00018992,2]
[334635613,1723369839773,-153.0,0.00018992,2]
[334635617,1723369839782,-153.0,0.00018992,2]
[334635621,1723369839791,-153.0,0.00018992,2]
[334635623,1723369839800,-153.0,0.00018992,2]
[334635626,1723369839809,-153.0,0.00018992,2]
[334635629,1723369839819,-153.0,0.00018992,2]
[334635632,1723369839828,-153.0,0.00018992,2]
[334635634,1723369839837,-153.0,0.00018992,2]
[334635635,1723369839846,-198.0,0.00018992,2]
[334635637,1723369839855,-198.0,0.00018992,2]
[334635638,1723369839864,-198.0,0.00018992,2]
[334635639,1723369839873,-198.0,0.00018992,2]
[334635640,1723369839882,-198.0,0.00018992,2]
[334635641,1723369839891,-198.0,0.00018992,2]
[334635642,1723369839900,-198.0,0.00018992,2]
[334635643,1723369839910,-198.0,0.00018992,2]
[334635645,1723369839919,-198.0,0.00018992,2]
[334635647,1723369839928,-198.0,0.00018992,2]
[334635649,1723369839938,-198.0,0.00018992,2]
[334635651,1723369839947,-198.0,0.00018992,2]
[334635652,1723369839957,-198.0,0.00018992,2]
[334635653,1723369839967,-198.0,0.00018992,2]
[334635654,1723369839977,-198.0,0.00018992,2]
[334635655,1723369839986,-198.0,0.00018992,2]
[334635656,1723369839996,-198.0,0.00018992,2]
[334635657,1723369840009,-198.0,0.00018992,2]
[334635658,1723369840018,-198.0,0.00018992,2]
[334635659,1723369840027,-198.0,0.00018992,2]
[334635661,1723369840037,-198.0,0.00018992,2]
[334635662,1723369840047,-198.0,0.00018992,2]
[334635663,1723369840056,-198.0,0.00018992,2]
[334635664,1723369840064,-198.0,0.00018992,2]
[334635665,1723369840074,-198.0,0.00018992,2]
[334635666,1723369840083,-198.0,0.00018992,2]
[334635667,1723369840093,-198.0,0.00018992,2]
[334635668,1723369840102,-198.0,0.00018992,2]
[334635669,1723369840112,-198.0,0.00018992,2]
[334635670,1723369840121,-198.0,0.00018992,2]
[334635671,1723369840130,-198.0,0.00018992,2]
[334635672,1723369840139,-198.0,0.00018992,2]
[334635673,1723369840149,-198.0,0.00018992,2]
[334635674,1723369840158,-198.0,0.00018992,2]
[334635675,1723369840168,-198.0,0.00018992,2]
[334635676,1723369840178,-198.0,0.00018992,2]
[334635677,1723369840188,-198.0,0.00018992,2]
[334635678,1723369840197,-198.0,0.00018992,2]
[334635679,1723369840206,-198.0,0.00018992,2]
[334635680,1723369840215,-198.0,0.00018992,2]
[334635681,1723369840225,-198.0,0.00018992,2]
[334635682,1723369840234,-198.0,0.00018992,2]
[334635683,1723369840243,-198.0,0.00018992,2]
[334635684,1723369840252,-198.0,0.00018992,2]
[334635685,1723369840260,-198.0,0.00018992,2]
[334635686,1723369840269,-198.0,0.00018992,2]
[334635687,1723369840278,-198.0,0.00018992,2]
[334635688,1723369840287,-420.0,0.00018992,2]
[334635689,1723369840296,-420.0,0.00018992,2]
[334635690,1723369840305,-420.0,0.00018992,2]
[334635691,1723369840314,-420.0,0.00018992,2]
[334635692,1723369840323,-420.0,0.00018992,2]
[334635693,1723369840332,-420.0,0.00018992,2]
[334635694,1723369840341,-420.0,0.00018992,2]
[334635695,1723369840350,-420.0,0.00018992,2]
[334635696,1723369840359,-420.0,0.00018992,2]
[334635697,1723369840368,-420.0,0.00018992,2]
[334635698,1723369840377,-420.0,0.00018992,2]
[334635699,1723369840386,-420.0,0.00018992,2]
[334635700,1723369840396,-420.0,0.00018992,2]
[334635701,1723369840405,-420.0,0.00018992,2]
[334635702,1723369840414,-420.0,0.00018992,2]
[334635703,1723369840423,-420.0,0.00018992,2]
[334635704,1723369840432,-420.0,0.00018992,2]
[334635705,1723369840441,-420.0,0.00018992,2]
[334635706,1723369840450,-420.0,0.00018992,2]
[334635707,1723369840460,-420.0,0.00018992,2]
[334635708,1723369840469,-420.0,0.00018992,2]
[334635709,1723369840478,-420.0,0.00018992,2]
[334635710,1723369840487,-420.0,0.00018992,2]
[334635711,1723369840496,-420.0,0.00018992,2]
[334635712,1723369840505,-420.0,0.00018992,2]
[334635713,1723369840514,-420.0,0.00018992,2]
[334635714,1723369840524,-420.0,0.00018992,2]
[334635715,1723369840533,-420.0,0.00018992,2]
[334635716,1723369840542,-420.0,0.00018992,2]
[334635717,1723369840551,-420.0,0.00018992,2]
[334635718,1723369840560,-420.0,0.00018992,2]
[334635719,1723369840569,-420.0,0.00018992,2]
[334635720,1723369840578,-420.0,0.00018992,2]
[334635721,1723369840587,-420.0,0.00018992,2]
[334635722,1723369840596,-206.0,0.00018992,2]
[334635723,1723369840605,-206.0,0.00018992,2]
[334635724,1723369840614,-206.0,0.00018992,2]
[334635725,1723369840623,-206.0,0.00018992,2]
[334635726,1723369840633,-206.0,0.00018992,2]
[334635727,1723369840643,-206.0,0.00018992,2]
[334635728,1723369840652,-206.0,0.00018992,2]
[334635729,1723369840661,-206.0,0.00018992,2]
[334635730,1723369840670,-206.0,0.00018992,2]
[334635731,1723369840679,-206.0,0.00018992,2]
[334635732,1723369840690,-206.0,0.00018992,2]
[334635733,1723369840699,-206.0,0.00018992,2]
[334635734,1723369840708,-420.0,0.00018992,2]
[334635735,1723369840716,-420.0,0.00018992,2]
[334635736,1723369840726,-420.0,0.00018992,2]
[334635737,1723369840735,-420.0,0.00018992,2]
[334635738,1723369840745,-420.0,0.00018992,2]
[334635739,1723369840754,-420.0,0.00018992,2]
[334635740,1723369840763,-420.0,0.00018992,2]
[334635741,1723369840772,-420.0,0.00018992,2]
[334635742,1723369840782,-420.0,0.00018992,2]
[334635743,1723369840791,-420.0,0.00018992,2]
[334635744,1723369840800,-420.0,0.00018992,2]
[334635745,1723369840809,-420.0,0.00018992,2]
[334635746,1723369840818,-420.0,0.00018992,2]
[334635747,1723369840827,-420.0,0.00018992,2]
[334635748,1723369840837,-420.0,0.00018992,2]
[334635749,1723369840846,-420.0,0.00018992,2]
[334635750,1723369840855,-420.0,0.00018992,2]
[334635751,1723369840865,-216.0,0.00018992,2]
[334635752,1723369840874,-216.0,0.00018992,2]
[334635753,1723369840882,-216.0,0.00018992,2]
[334635754,1723369840891,-216.0,0.00018992,2]
[334635755,1723369840900,-216.0,0.00018992,2]
[334635756,1723369840909,-216.0,0.00018992,2]
[334635757,1723369840917,-216.0,0.00018992,2]
[334635758,1723369840927,-216.0,0.00018992,2]
[334635759,1723369840936,-216.0,0.00018992,2]
[334635760,1723369840944,-216.0,0.00018992,2]
[334635761,1723369840953,-216.0,0.00018992,2]
[334635762,1723369840963,-216.0,0.00018992,2]
[334635763,1723369840972,-216.0,0.00018992,2]
[334635764,1723369840981,-216.0,0.00018992,2]
[334635765,1723369840990,-216.0,0.00018992,2]
[334635766,1723369841001,-216.0,0.00018992,2]
[334635767,1723369841010,-216.0,0.00018992,2]
[334635768,1723369841019,-420.0,0.00018992,2]
[334635769,1723369841028,-420.0,0.00018992,2]
[334635770,1723369841038,-420.0,0.00018992,2]
[334635771,1723369841047,-420.0,0.00018992,2]
[334635772,1723369841055,-420.0,0.00018992,2]
[334635773,1723369841064,-420.0,0.00018992,2]
[334635774,1723369841075,-420.0,0.00018992,2]
[334635775,1723369841084,-420.0,0.00018992,2]
[334635776,1723369841093,-420.0,0.00018992,2]
[334635777,1723369841101,-420.0,0.00018992,2]
[334635778,1723369841110,-420.0,0.00018992,2]
[334635779,1723369841119,-420.0,0.00018992,2]
[334635780,1723369841128,-420.0,0.00018992,2]
[334635781,1723369841137,-420.0,0.00018992,2]
[334635782,1723369841146,-420.0,0.00018992,2]
[334635783,1723369841155,-420.0,0.00018992,2]
[334635784,1723369841164,-420.0,0.00018992,2]
[334635785,1723369841173,-2164.45800918,0.00018999,2]
[334635786,1723369841182,-9430.85260519,0.00019,2]
[334635787,1723369841191,-156.28091519,0.00019,2]
[334635788,1723369841200,-154.0,0.00019006,2]
[334635789,1723369841209,-250.0,0.00019041,2]
[334635790,1723369841220,-5096.09566092,0.00019099,2]
[334635791,1723369841229,-150.112233,0.000191,2]
[334635792,1723369841238,-150.112233,0.000191,2]
[334635793,1723369841247,-932.99527997,0.00019177,2]
[334635794,1723369841256,-171.573479,0.00019178,2]
[334635795,1723369841265,-168.569674,0.00019178,2]
[334635796,1723369841274,-587.0,0.00019234,2]
[334635797,1723369841284,-5096.09566092,0.00019244,2]
[334635798,1723369841293,-3090.31067256,0.00019256,2]
[334635799,1723369841302,-154.76012181,0.00019256,2]
[334635800,1723369841311,-150.112233,0.000194,2]
[334635801,1723369841320,-150.112233,0.000194,2]
[334635802,1723369841330,-159.38116829,0.00019451,2]
[334635803,1723369841340,-301.25996446,0.00019451,2]
[334635804,1723369841349,-285.55791822,0.00019477,2]
[334635805,1723369841358,-154.76012181,0.00019477,2]
[334635806,1723369841368,-209.29,0.00019533,2]
[334635807,1723369841377,-1364.59246336,0.00019547,2]
[334635808,1723369841387,-201.64749152,0.00019547,2]
[334635809,1723369841397,-150.112233,0.000197,2]
[334635810,1723369841406,-150.112233,0.000197,2]
[334635811,1723369841416,-5096.09566092,0.0001971,2]
[334635812,1723369841425,-294.6834504,0.00019726,2]
[334635813,1723369841434,-294.6834504,0.00019726,2]
[334635814,1723369841444,-294.6834504,0.00019726,2]
[334635815,1723369841454,-294.6834504,0.00019726,2]
[334635816,1723369841464,-294.6834504,0.00019726,2]
[334635817,1723369841475,-294.6834504,0.00019726,2]
[334635818,1723369841484,-5096.09566092,0.00019847,2]
[334635819,1723369841494,-150.112233,0.000199,2]
[334635820,1723369841503,-158.37000166,0.0002,2]
[334635821,1723369841512,-427.42147881,0.0002,2]
[334635822,1723369841522,-156.5036659,0.0002,2]
[334635823,1723369841531,-1392.94350918,0.0002,2]
[334635824,1723369841541,-204.47704379,0.0002,2]
[334635825,1723369841550,-155.07911073,0.0002,2]
[334635826,1723369841560,-154.76012181,0.0002,2]
[334635827,1723369841570,-150.112233,0.0002,2]
[334635828,1723369841579,-250.0,0.0002,2]
[334635829,1723369841589,-2755.0,0.0002,2]
[334635830,1723369841598,-294.37791673,0.0002,2]
[334635831,1723369841607,-336.48303043,0.0002,2]
[334635832,1723369841617,-153.0,0.0002,2]
[334635833,1723369841626,-162.1950708,0.0002,2]
[334635834,1723369841636,-539.3690451,0.00020042,2]
[334635835,1723369841646,-150.112233,0.000202,3]
[334635836,1723369841655,-5096.09566092,0.0002021,2]
[334635837,1723369841664,-414.28019691,0.0002028,2]
[334635838,1723369841674,-728.15079492,0.0002028,2]
[334635839,1723369841685,-150.112233,0.000203,2]
[334635840,1723369841695,-151.0,0.00020317,2]
[334635841,1723369841704,-150.0,0.0002046,2]
[334635842,1723369841713,-5096.09566092,0.00020467,2]
[334635843,1723369841723,-150.112233,0.000205,2]
[334635844,1723369841733,-150.112233,0.000205,2]
[334635845,1723369841742,-150.0,0.00020535,2]
[334635846,1723369841752,-507.0,0.00020535,2]
[334635847,1723369841761,-1413.0,0.00020535,2]
[334635848,1723369841770,-212.26,0.00020535,2]
[334635849,1723369841780,-150.682,0.00020535,2]
[334635850,1723369841789,-150.781,0.00020535,2]
[334635851,1723369841798,-500.0,0.00020547,7]
[334635852,1723369841807,-500.0,0.00020547,7]
[334635853,1723369841816,-516.97099816,0.00020547,7]
[334635854,1723369841825,-500.0,0.00020547,5]
[334635855,1723369841834,-500.0,0.00020547,5]
[334635856,1723369841843,-500.0,0.00020547,5]
[334635857,1723369841853,-500.0,0.00020547,5]
[334635858,1723369841862,-500.0,0.00020547,5]
[334635859,1723369841872,-500.0,0.00020547,5]
[334635860,1723369841881,-500.0,0.00020547,5]
[334635861,1723369841891,-500.0,0.00020547,5]
[334635862,1723369841900,-500.0,0.00020547,5]
[334635863,1723369841910,-500.0,0.00020547,5]
[334635864,1723369841919,-294.6834504,0.00020548,2]
[334635865,1723369842061,-294.6834504,0.00020548,2]
[334635866,1723369842072,-294.6834504,0.00020548,2]
[334635867,1723369842081,-294.6834504,0.00020548,2]
[334635868,1723369842091,-294.6834504,0.00020548,2]
[334635869,1723369842099,-294.6834504,0.00020548,2]
[334635870,1723369842108,-294.6834504,0.00020548,2]
[334635871,1723369842117,-294.6834504,0.00020548,2]
[334635872,1723369842127,-294.6834504,0.00020548,2]
[334635873,1723369842136,-294.6834504,0.00020548,2]
[334635874,1723369842145,-294.6834504,0.00020548,2]
[334635875,1723369842154,-5096.09566105,0.00020621,2]
[334635876,1723369842163,-151.0,0.00020626,2]
[334635877,1723369842173,-153.0,0.00020643,2]
[334635878,1723369842182,-155.0,0.0002066,4]
[334635879,1723369842191,-500.0,0.0002072,5]
[334635880,1723369842201,-25000.0,0.00020721,2]
[334635881,1723369842211,-150.0,0.00020738,2]
[334635882,1723369842222,-500.0,0.0002082,5]
[334635883,1723369842231,-456.48,0.0002082,5]
[334635884,1723369842241,-504.4557744,0.00020821,3]
[334635885,1723369842251,-610.36450833,0.00020821,3]
[334635886,1723369842260,-504.86483065,0.00020821,3]
[334635887,1723369842270,-500.0,0.00020821,3]
[334635888,1723369842279,-503.40576337,0.00020821,3]
[334635889,1723369842288,-500.0,0.00020821,3]
[334635890,1723369842298,-506.01121711,0.00020821,3]
[334635891,1723369842308,-500.0,0.00020821,3]
[334635892,1723369842317,-500.0,0.00020821,3]
[334635893,1723369842326,-500.0,0.00020821,3]
[334635894,1723369842335,-500.0,0.00020821,3]
[334635895,1723369842344,-504.87484438,0.00020821,3]
[334635896,1723369842354,-501.52615844,0.00020821,3]
[334635897,1723369842364,-512.32607829,0.00020821,3]
[334635898,1723369842374,-500.0,0.00020821,3]
[334635899,1723369842383,-505.81764935,0.00020821,3]
[334635900,1723369842392,-508.8221319,0.00020821,3]
[334635901,1723369842402,-500.0,0.00020821,3]
[334635902,1723369842411,-500.0,0.00020821,3]
[334635903,1723369842421,-501.06827492,0.00020821,3]
[334635904,1723369842430,-501.66092667,0.00020821,3]
[334635905,1723369842440,-501.6350984,0.00020821,3]
[334635906,1723369842449,-500.0,0.00020821,3]
[334635907,1723369842459,-500.88151954,0.00020821,3]
[334635908,1723369842472,-500.0,0.00020821,3]
[334635909,1723369842483,-502.68066236,0.00020821,3]
[334635910,1723369842492,-500.0,0.00020821,3]
[334635911,1723369842502,-504.94205813,0.00020821,3]
[334635912,1723369842512,-500.0,0.00020821,3]
[334635913,1723369842521,-500.0,0.00020821,3]
[334635914,1723369842530,-509.81422809,0.00020821,3]
[334635915,1723369842540,-500.0,0.00020821,3]
[334635916,1723369842550,-500.0,0.00020821,3]
[334635917,1723369842559,-500.0,0.00020821,3]
[334635918,1723369842568,-509.41383,0.00020821,3]
[334635919,1723369842578,-501.07225668,0.00020821,3]
[334635920,1723369842587,-500.0,0.00020821,3]
[334635921,1723369842596,-646.07888611,0.00020821,3]
[334635923,1723369842606,-1230.81,0.00020821,3]
[334635926,1723369842616,-505.08188763,0.00020821,3]
[334635928,1723369842625,-503.96984952,0.00020821,3]
[334635930,1723369842634,-503.00001452,0.00020821,3]
[334635932,1723369842643,-500.0,0.00020821,3]
[334635933,1723369842652,-500.0,0.00020821,3]
[334635934,1723369842661,-502.7216176,0.00020821,3]
[334635935,1723369842670,-431.23508725,0.00020821,3]
[334635936,1723369842680,-500.0,0.00020821,3]
[334635937,1723369842689,-505.19639206,0.00020821,3]
[334635939,1723369842699,-500.0,0.00020821,3]
[334635940,1723369842708,-596.03,0.00020821,3]
[334635941,1723369842717,-502.50116967,0.00020821,3]
[334635942,1723369842736,-500.0,0.00020821,3]
[334635945,1723369842746,-502.12988075,0.00020821,3]
[334635947,1723369842755,-502.01891898,0.00020821,3]
[334635950,1723369842764,-500.0,0.00020821,3]
[334635952,1723369842774,-505.02754684,0.00020821,3]
[334635954,1723369842783,-500.0,0.00020821,3]
[334635956,1723369842793,-562.19599554,0.00020821,3]
[334635958,1723369842802,-500.0,0.00020821,3]
[334635960,1723369842811,-500.0,0.00020821,3]
[334635962,1723369842820,-500.0,0.00020821,3]
[334635964,1723369842829,-500.0,0.00020821,3]
[334635965,1723369842838,-293.90482398,0.00020821,3]
[334635966,1723369842847,-500.0,0.00020821,3]
[334635968,1723369842857,-502.66916253,0.00020821,3]
[334635970,1723369842867,-502.24014569,0.00020821,3]
[334635972,1723369842876,-620.44,0.00020821,3]
[334635974,1723369842886,-500.0,0.00020821,3]
[334635975,1723369842895,-501.88089988,0.00020821,3]
[334635976,1723369842904,-502.27750325,0.00020821,3]
[334635978,1723369842914,-500.0,0.00020821,3]
[334635980,1723369842924,-504.48290795,0.00020821,3]
[334635982,1723369842935,-506.2683459,0.00020821,3]
[334635984,1723369842944,-500.0,0.00020821,3]
[334635985,1723369842953,-500.0,0.00020821,3]
[334635986,1723369842963,-500.0,0.00020821,3]
[334635987,1723369842975,-500.0,0.00020821,3]
[334635988,1723369842984,-500.0,0.00020821,3]
[334635989,1723369842993,-503.11790601,0.00020821,3]
[334635990,1723369843006,-820.2,0.00020821,3]
[334635991,1723369843016,-501.58601704,0.00020821,3]
[334635992,1723369843025,-324.05188359,0.00020821,3]
[334635993,1723369843035,-514.50075394,0.00020821,3]
[334635994,1723369843046,-500.0,0.00020821,3]
[334635995,1723369843055,-500.0,0.00020821,3]
[334635996,1723369843064,-500.0,0.00020821,3]
[334635997,1723369843075,-500.0,0.00020821,3]
[334635998,1723369843085,-500.0,0.00020821,3]
[334635999,1723369843096,-500.0,0.00020821,3]
[334636000,1723369843106,-500.0,0.00020821,3]
[334636001,1723369843115,-500.0,0.00020821,3]
[334636002,1723369843125,-500.0,0.00020821,3]
[334636003,1723369843135,-1238.49,0.00020821,3]
[334636004,1723369843145,-874.56,0.00020821,3]
[334636005,1723369843155,-500.0,0.00020821,3]
[334636006,1723369843165,-500.0,0.00020821,3]
[334636007,1723369843175,-500.0,0.00020821,3]
[334636008,1723369843184,-500.0,0.00020821,3]
[334636009,1723369843194,-500.0,0.00020821,3]
[334636010,1723369843203,-500.0,0.00020821,3]
[334636011,1723369843213,-500.0,0.00020821,3]